fUSD/lending_fUSD_20240409
["ID","MTS","AMOUNT","RATE_DAILY","PERIOD"]
[321969733,1712661033885,-1443.85403433,0.00020699,2]
[321969734,1712661033894,-500.0,0.00020699,2]
[321969735,1712661033904,-500.0,0.00020699,2]
[321969736,1712661033913,-500.0,0.00020699,2]
[321969737,1712661033927,-642.58111589,0.00020699,2]
[321969738,1712661033936,-353.3020712,0.00020699,2]
[321969739,1712661033945,-276075.1381,0.000207,2]
[321969740,1712661033955,-1000.0,0.000207,2]
[321969741,1712661033965,-500.0,0.000207,2]
[321969742,1712661033974,-7500.0,0.000207,2]
[321969743,1712661033984,-173.040917,0.00020718,2]
[321969744,1712661033994,-173.040917,0.00020718,2]
[321969745,1712661034005,-173.040917,0.00020718,2]
[321969746,1712661034015,-173.040917,0.00020718,2]
[321969747,1712661034024,-173.040917,0.00020718,2]
[321969748,1712661034033,-157.040917,0.00020718,2]
[321969749,1712661034044,-173.13703825,0.00020721,2]
[321969750,1712661034053,-3002.43777512,0.00020721,2]
[321969751,1712661034063,-152.14607275,0.00020721,2]
[321969752,1712661034072,-4018.9749,0.00020721,2]
[321969753,1712661034082,-12372.0155,0.00020721,2]
[321969754,1712661034094,-177.46028582,0.0002079,2]
[321969755,1712661034103,-2805.81453626,0.00020791,2]
[321969756,1712661034115,-87211.17752843,0.000208,3]
[321969757,1712661034125,-473.0,0.000208,2]
[321969758,1712661034134,-150.0,0.00020812,2]
[321969759,1712661034144,-562.68660118,0.00020819,2]
[321969760,1712661034154,-351.10446512,0.00020819,2]
[321969761,1712661034164,-3692.50343558,0.00020819,2]
[321969762,1712661034175,-4716.5472582,0.00020819,2]
[321969763,1712661034185,-261.60041953,0.00020819,2]
[321969764,1712661034195,-725.10817158,0.00020819,2]
[321969765,1712661034204,-217.91923459,0.00020819,2]
[321969766,1712661034213,-2047.62177569,0.00020819,2]
[321969767,1712661034223,-155.0,0.00020819,2]
[321969768,1712661034232,-338.00508921,0.00020819,2]
[321969769,1712661034242,-267.02206528,0.00020819,2]
[321969770,1712661034251,-1240.66300341,0.00020819,2]
[321969771,1712661034261,-8678.68862287,0.00020819,2]
[321969772,1712661034270,-375.85470948,0.00020819,2]
[321969773,1712661034279,-3070.55960045,0.00020819,2]
[321969774,1712661034289,-233.22215638,0.0002082,2]
[321969775,1712661034298,-1563.34218313,0.0002082,5]
[321969776,1712661034307,-511.0,0.00020821,2]
[321969777,1712661034317,-501.92763644,0.00020821,2]
[321969778,1712661034326,-500.0,0.00020821,2]
[321969779,1712661034334,-500.0,0.00020821,2]
[321969780,1712661034343,-612.17386381,0.00020821,2]
[321969781,1712661034353,-500.0,0.00020821,2]
[321969782,1712661034363,-850.07,0.00020821,2]
[321969783,1712661034372,-500.0,0.00020821,2]
[321969784,1712661034382,-500.0,0.00020821,2]
[321969785,1712661034391,-500.0,0.00020821,2]
[321969786,1712661034400,-500.0,0.00020821,2]
[321969787,1712661034409,-500.0,0.00020821,2]
[321969788,1712661034418,-500.0,0.00020821,2]
[321969789,1712661034427,-500.0,0.00020821,2]
[321969790,1712661034437,-500.0,0.00020821,2]
[321969791,1712661034446,-500.0,0.00020821,2]
[321969792,1712661034454,-500.0,0.00020821,2]
[321969793,1712661034463,-500.0,0.00020821,2]
[321969794,1712661034472,-500.0,0.00020821,2]
[321969795,1712661034482,-500.0,0.00020821,2]
[321969796,1712661034491,-500.0,0.00020821,2]
[321969797,1712661034500,-500.0,0.00020821,2]
[321969798,1712661034509,-792.66,0.00020821,2]
[321969799,1712661034518,-500.0,0.00020821,2]
[321969800,1712661034527,-500.0,0.00020821,2]
[321969801,1712661034537,-500.0,0.00020821,2]
[321969802,1712661034546,-500.0,0.00020821,2]
[321969803,1712661034556,-500.0,0.00020821,2]
[321969804,1712661034565,-500.0,0.00020821,2]
[321969805,1712661034574,-500.0,0.00020821,2]
[321969806,1712661034583,-500.0,0.00020821,2]
[321969807,1712661034591,-500.0,0.00020821,2]
[321969808,1712661034601,-692.69,0.00020821,2]
[321969809,1712661034611,-500.0,0.00020821,2]
[321969810,1712661034620,-500.0,0.00020821,2]
[321969811,1712661034629,-440.80127672,0.00020821,2]
[321969812,1712661034639,-500.0,0.00020821,2]
[321969813,1712661034648,-500.0,0.00020821,2]
[321969814,1712661034657,-500.0,0.00020821,2]
[321969815,1712661034667,-500.0,0.00020821,2]
[321969816,1712661034676,-500.0,0.00020821,2]
[321969817,1712661034685,-517.0,0.00020821,2]
[321969818,1712661034695,-500.0,0.00020821,2]
[321969819,1712661034704,-500.0,0.00020821,2]
[321969820,1712661034712,-339.59751781,0.00020821,2]
[321969821,1712661034722,-500.0,0.00020821,2]
[321969822,1712661034731,-502.57,0.00020821,2]
[321969823,1712661034739,-500.0,0.00020821,2]
[321969824,1712661034748,-500.0,0.00020821,2]
[321969825,1712661034757,-565.2,0.00020821,2]
[321969826,1712661034766,-500.0,0.00020821,2]
[321969827,1712661034776,-500.0,0.00020821,2]
[321969828,1712661034785,-503.52,0.00020821,2]
[321969829,1712661034794,-628.40654242,0.00020821,2]
[321969830,1712661034803,-500.0,0.00020821,2]
[321969831,1712661034812,-1126.58,0.00020821,2]
[321969832,1712661034821,-500.0,0.00020821,2]
[321969833,1712661034831,-699.6,0.00020821,2]
[321969834,1712661034841,-1019.15,0.00020821,2]
[321969835,1712661034850,-575.17,0.00020821,2]
[321969836,1712661034860,-500.0,0.00020821,2]
[321969837,1712661034869,-555.92,0.00020821,2]
[321969838,1712661034877,-500.0,0.00020821,2]
[321969839,1712661034886,-500.0,0.00020821,2]
[321969840,1712661034895,-500.0,0.00020821,2]
[321969841,1712661034905,-640.76,0.00020821,2]
[321969842,1712661034914,-641.94,0.00020821,2]
[321969843,1712661034925,-500.0,0.00020821,2]
[321969844,1712661034934,-500.0,0.00020821,2]
[321969845,1712661034943,-500.0,0.00020821,2]
[321969846,1712661034953,-500.0,0.00020821,2]
[321969847,1712661034962,-500.0,0.00020821,2]
[321969848,1712661034972,-558.37,0.00020821,2]
[321969849,1712661034980,-500.0,0.00020821,2]
[321969850,1712661034990,-500.0,0.00020821,2]
[321969851,1712661034999,-888.96,0.00020821,2]
[321969852,1712661035008,-919.42,0.00020821,2]
[321969853,1712661035017,-500.0,0.00020821,2]
[321969854,1712661035027,-608.61,0.00020821,2]
[321969855,1712661035036,-859.69,0.00020821,2]
[321969856,1712661035046,-500.0,0.00020821,2]
[321969857,1712661035055,-500.0,0.00020821,2]
[321969858,1712661035064,-704.71,0.00020821,2]
[321969859,1712661035074,-765.24,0.00020821,2]
[321969860,1712661035357,-1241.76,0.00020821,2]
[321969861,1712661035369,-542.77,0.00020821,2]
[321969862,1712661035378,-500.0,0.00020821,2]
[321969863,1712661035387,-500.0,0.00020821,2]
[321969864,1712661035397,-500.0,0.00020821,2]
[321969865,1712661035406,-500.0,0.00020821,2]
[321969866,1712661035415,-531.5135271,0.00020821,2]
[321969867,1712661035424,-500.0,0.00020821,2]
[321969868,1712661035434,-500.0,0.00020821,2]
[321969869,1712661035444,-500.0,0.00020821,2]
[321969870,1712661035453,-1023.4,0.00020821,2]
[321969871,1712661035462,-500.0,0.00020821,2]
[321969872,1712661035471,-672.77,0.00020821,2]
[321969873,1712661035481,-1354.84,0.00020821,2]
[321969874,1712661035490,-500.0,0.00020821,2]
[321969875,1712661035501,-500.0,0.00020821,2]
[321969876,1712661035510,-585.97,0.00020821,2]
[321969877,1712661035521,-689.46,0.00020821,2]
[321969878,1712661035530,-500.0,0.00020821,2]
[321969879,1712661035540,-500.0,0.00020821,2]
[321969880,1712661035550,-500.0,0.00020821,2]
[321969881,1712661035560,-500.0,0.00020821,2]
[321969882,1712661035570,-562.3,0.00020821,2]
[321969883,1712661035590,-885.14,0.00020821,2]
[321969884,1712661035636,-531.64,0.00020821,2]
[321969885,1712661035646,-500.0,0.00020821,2]
[321969886,1712661035656,-1821.76,0.00020821,2]
[321969887,1712661035666,-563.47,0.00020821,2]
[321969888,1712661035676,-571.6907861,0.00020821,2]
[321969889,1712661035686,-500.0,0.00020821,2]
[321969890,1712661035696,-500.0,0.00020821,2]
[321969891,1712661035705,-500.0,0.00020821,2]
[321969892,1712661035716,-500.0,0.00020821,2]
[321969893,1712661035726,-500.0,0.00020821,2]
[321969894,1712661035736,-1057.08,0.00020821,2]
[321969895,1712661035745,-634.17,0.00020821,2]
[321969896,1712661035755,-500.0,0.00020821,2]
[321969897,1712661035765,-500.0,0.00020821,2]
[321969898,1712661035775,-500.0,0.00020821,2]
[321969899,1712661035786,-665.95,0.00020821,2]
[321969900,1712661035796,-500.0,0.00020821,2]
[321969901,1712661035807,-985.17,0.00020821,2]
[321969902,1712661035817,-1251.08,0.00020821,2]
[321969903,1712661035827,-500.0,0.00020821,2]
[321969904,1712661035838,-1788.9,0.00020821,2]
[321969905,1712661035848,-902.55,0.00020821,2]
[321969906,1712661035858,-500.0,0.00020821,2]
[321969907,1712661035870,-500.0,0.00020821,2]
[321969908,1712661035879,-640.78,0.00020821,2]
[321969909,1712661035890,-184.68238737,0.00020821,2]
[321969910,1712661035900,-500.0,0.00020821,2]
[321969911,1712661035912,-500.0,0.00020821,2]
[321969912,1712661035924,-500.0,0.00020821,2]
[321969913,1712661035934,-859.34,0.00020821,2]
[321969914,1712661035944,-500.0,0.00020821,2]
[321969915,1712661035954,-589.42,0.00020821,2]
[321969916,1712661035964,-500.0,0.00020821,2]
[321969917,1712661035974,-500.0,0.00020821,2]
[321969918,1712661035984,-500.0,0.00020821,2]
[321969919,1712661035994,-500.0,0.00020821,2]
[321969920,1712661036005,-1517.19,0.00020821,2]
[321969921,1712661036016,-580.77,0.00020821,2]
[321969922,1712661036025,-500.0,0.00020821,2]
[321969923,1712661036035,-1302.48,0.00020821,2]
[321969924,1712661036045,-500.0,0.00020821,2]
[321969925,1712661036054,-500.0,0.00020821,2]
[321969926,1712661036063,-451.61821821,0.00020821,2]
[321969927,1712661036073,-500.0,0.00020821,2]
[321969928,1712661036083,-500.0,0.00020821,2]
[321969929,1712661036093,-708.66,0.00020821,2]
[321969930,1712661036104,-500.0,0.00020821,2]
[321969931,1712661036114,-1700.1,0.00020821,2]
[321969932,1712661036124,-500.0,0.00020821,2]
[321969933,1712661036133,-697.59,0.00020821,2]
[321969934,1712661036143,-1089.24,0.00020821,2]
[321969935,1712661036153,-500.0,0.00020821,2]
[321969936,1712661036163,-500.0,0.00020821,2]
[321969937,1712661036175,-603.12,0.00020821,2]
[321969938,1712661036185,-1002.04,0.00020821,2]
[321969939,1712661036195,-500.0,0.00020821,2]
[321969940,1712661036205,-553.83,0.00020821,2]
[321969941,1712661036215,-898.17,0.00020821,2]
[321969942,1712661036225,-712.09,0.00020821,2]
[321969943,1712661036235,-500.0,0.00020821,2]
[321969944,1712661036246,-1492.75,0.00020821,2]
[321969945,1712661036256,-500.0,0.00020821,2]
[321969946,1712661036266,-500.0,0.00020821,2]
[321969947,1712661036276,-537.06,0.00020821,2]
[321969948,1712661036286,-1291.13,0.00020821,2]
[321969949,1712661036296,-850.76,0.00020821,2]
[321969950,1712661036306,-568.58,0.00020821,2]
[321969951,1712661036316,-781.64,0.00020821,2]
[321969952,1712661036325,-1201.72,0.00020821,2]
[321969953,1712661036335,-500.0,0.00020821,2]
[321969954,1712661036345,-1382.83,0.00020821,2]
[321969955,1712661036354,-500.0,0.00020821,2]
[321969956,1712661036365,-1575.78,0.00020821,2]
[321969957,1712661036375,-500.0,0.00020821,2]
[321969958,1712661036384,-500.0,0.00020821,2]
[321969959,1712661036394,-500.0,0.00020821,2]
[321969960,1712661036405,-1148.52,0.00020821,2]
[321969961,1712661036415,-500.0,0.00020821,2]
[321969962,1712661036425,-500.0,0.00020821,2]
[321969963,1712661036435,-187.53398515,0.00020821,2]
[321969964,1712661036446,-1090.34,0.00020821,2]
[321969965,1712661036455,-500.0,0.00020821,2]
[321969966,1712661036466,-500.0,0.00020821,2]
[321969967,1712661036477,-500.0,0.00020821,2]
[321969968,1712661036487,-500.0,0.00020821,2]
[321969969,1712661036497,-1403.7,0.00020821,2]
[321969970,1712661036507,-582.62,0.00020821,2]
[321969971,1712661036517,-500.0,0.00020821,2]
[321969972,1712661036527,-500.0,0.00020821,2]
[321969973,1712661036537,-1262.68,0.00020821,2]
[321969974,1712661036547,-1712.81,0.00020821,2]
[321969975,1712661036557,-500.0,0.00020821,2]
[321969976,1712661036567,-1305.18,0.00020821,2]
[321969977,1712661036578,-869.09,0.00020821,2]
[321969978,1712661036588,-691.14,0.00020821,2]
[321969979,1712661036598,-699.44,0.00020821,2]
[321969980,1712661036608,-500.0,0.00020821,2]
[321969981,1712661036619,-1987.23,0.00020821,2]
[321969982,1712661036629,-935.56,0.00020821,2]
[321969983,1712661036639,-500.0,0.00020821,2]
[321969984,1712661036649,-1212.42,0.00020821,2]
[321969985,1712661036659,-500.0,0.00020821,2]
[321969986,1712661036670,-522.25615775,0.00020821,2]
[321969987,1712661036680,-1465.98,0.00020821,2]
[321969988,1712661036690,-500.0,0.00020821,2]
[321969989,1712661036701,-922.28,0.00020821,2]
[321969990,1712661036711,-519.81776586,0.00020821,2]
[321969991,1712661036720,-500.0,0.00020821,2]
[321969992,1712661036730,-500.0,0.00020821,2]
[321969993,1712661036740,-500.0,0.00020821,2]
[321969994,1712661036750,-1648.49,0.00020821,2]
[321969995,1712661036760,-500.0,0.00020821,2]
[321969996,1712661036770,-500.0,0.00020821,2]
[321969997,1712661036780,-500.0,0.00020821,2]
[321969998,1712661036790,-500.0,0.00020821,2]
[321969999,1712661036799,-1863.53,0.00020821,2]
[321970000,1712661036808,-500.0,0.00020821,2]
[321970001,1712661036818,-1020.71,0.00020821,2]
[321970002,1712661036827,-500.0,0.00020821,2]
[321970003,1712661036836,-500.0,0.00020821,2]
[321970004,1712661036846,-500.0,0.00020821,2]
[321970005,1712661036856,-1628.85,0.00020821,2]
[321970006,1712661036868,-1417.4,0.00020821,2]
[321970007,1712661036878,-506.62551477,0.00020821,2]
[321970008,1712661036888,-500.0,0.00020821,2]
[321970009,1712661036898,-731.85,0.00020821,2]
[321970010,1712661036907,-779.93,0.00020821,2]
[321970011,1712661036919,-500.0,0.00020821,2]
[321970012,1712661036931,-500.0,0.00020821,2]
[321970013,1712661036942,-500.0,0.00020821,2]
[321970014,1712661036954,-500.0,0.00020821,2]
[321970015,1712661036965,-500.0,0.00020821,2]
[321970016,1712661036975,-834.26,0.00020821,2]
[321970017,1712661036985,-500.0,0.00020821,2]
[321970018,1712661036997,-500.0,0.00020821,2]
[321970019,1712661037007,-500.0,0.00020821,2]
[321970020,1712661037018,-500.0,0.00020821,2]
[321970021,1712661037027,-500.0,0.00020821,2]
[321970022,1712661037037,-500.0,0.00020821,2]
[321970023,1712661037047,-500.0,0.00020821,2]
[321970024,1712661037057,-500.0,0.00020821,2]
[321970025,1712661037067,-310.52892947,0.00020821,2]
[321970026,1712661037076,-549.52450777,0.00020821,2]
[321970027,1712661037086,-1954.6,0.00020821,2]
[321970028,1712661037097,-936.39,0.00020821,2]
[321970029,1712661037109,-500.0,0.00020821,2]
[321970030,1712661037121,-500.0,0.00020821,2]
[321970031,1712661037132,-500.0,0.00020821,2]
[321970032,1712661037142,-813.81,0.00020821,2]
[321970033,1712661037152,-500.0,0.00020821,2]
[321970034,1712661037162,-500.0,0.00020821,2]
[321970035,1712661037173,-500.0,0.00020821,2]
[321970036,1712661037183,-518.98778066,0.00020821,2]
[321970037,1712661037194,-500.0,0.00020821,2]
[321970038,1712661037204,-500.0,0.00020821,2]
[321970039,1712661037214,-569.82,0.00020821,2]
[321970040,1712661037225,-602.91,0.00020821,2]
[321970041,1712661037235,-1064.02,0.00020821,2]
[321970042,1712661037246,-500.0,0.00020821,2]
[321970043,1712661037257,-500.0,0.00020821,2]
[321970044,1712661037266,-500.0,0.00020821,2]
[321970045,1712661037276,-500.0,0.00020821,2]
[321970046,1712661037286,-748.55,0.00020821,2]
[321970047,1712661037297,-500.0,0.00020821,2]
[321970048,1712661037308,-500.0,0.00020821,2]
[321970049,1712661037318,-568.05,0.00020821,2]
[321970050,1712661037328,-500.0,0.00020821,2]
[321970051,1712661037338,-500.0,0.00020821,2]
[321970052,1712661037349,-500.0,0.00020821,2]
[321970053,1712661037362,-500.0,0.00020821,2]
[321970054,1712661037373,-500.0,0.00020821,2]
[321970055,1712661037383,-1005.02,0.00020821,2]
[321970056,1712661037394,-500.0,0.00020821,2]
[321970057,1712661037404,-720.12,0.00020821,2]
[321970058,1712661037415,-766.5,0.00020821,2]
[321970059,1712661037425,-500.0,0.00020821,2]
[321970060,1712661037435,-610.92,0.00020821,2]
[321970061,1712661037445,-500.0,0.00020821,2]
[321970062,1712661037454,-500.0,0.00020821,2]
[321970063,1712661037463,-1657.17,0.00020821,2]
[321970064,1712661037473,-500.0,0.00020821,2]
[321970065,1712661037482,-1132.7,0.00020821,2]
[321970066,1712661037491,-500.0,0.00020821,2]
[321970067,1712661037500,-662.3,0.00020821,2]
[321970068,1712661037509,-500.0,0.00020821,2]
[321970069,1712661037519,-500.0,0.00020821,2]
[321970070,1712661037528,-577.52,0.00020821,2]
[321970071,1712661037537,-489.55378559,0.00020821,2]
[321970072,1712661037546,-500.0,0.00020821,2]
[321970073,1712661037555,-996.03,0.00020821,2]
[321970074,1712661037564,-500.0,0.00020821,2]
[321970075,1712661037573,-500.0,0.00020821,2]
[321970076,1712661037582,-500.0,0.00020821,2]
[321970077,1712661037591,-500.0,0.00020821,2]
[321970078,1712661037601,-500.0,0.00020821,2]
[321970079,1712661037611,-500.0,0.00020821,2]
[321970080,1712661037620,-500.0,0.00020821,2]
[321970081,1712661037630,-500.0,0.00020821,2]
[321970082,1712661037639,-500.0,0.00020821,2]
[321970083,1712661037648,-500.0,0.00020821,2]
[321970084,1712661037657,-503.15,0.00020821,2]
[321970085,1712661037666,-1087.01,0.00020821,2]
[321970086,1712661037676,-500.0,0.00020821,2]
[321970087,1712661037685,-500.0,0.00020821,2]
[321970088,1712661037694,-310.3418559,0.00020821,2]
[321970089,1712661037703,-500.0,0.00020821,2]
[321970090,1712661037713,-1427.68,0.00020821,2]
[321970091,1712661037722,-1319.36,0.00020821,2]
[321970092,1712661037731,-218.64043849,0.00020821,2]
[321970093,1712661037741,-500.0,0.00020821,2]
[321970094,1712661037751,-500.0,0.00020821,2]
[321970095,1712661037761,-500.0,0.00020821,2]
[321970096,1712661037770,-500.0,0.00020821,2]
[321970097,1712661037780,-500.0,0.00020821,2]
[321970098,1712661037790,-500.0,0.00020821,2]
[321970099,1712661037799,-500.0,0.00020821,2]
[321970100,1712661037809,-500.0,0.00020821,2]
[321970101,1712661037818,-500.0,0.00020821,2]
[321970102,1712661037828,-786.04,0.00020821,2]
[321970103,1712661037837,-500.0,0.00020821,2]
[321970104,1712661037847,-1572.5,0.00020821,2]
[321970105,1712661037856,-1563.46,0.00020821,2]
[321970106,1712661037867,-500.0,0.00020821,2]
[321970107,1712661037876,-500.0,0.00020821,2]
[321970108,1712661037885,-500.0,0.00020821,2]
[321970109,1712661037894,-500.0,0.00020821,2]
[321970110,1712661037904,-500.0,0.00020821,2]
[321970111,1712661037913,-300.0,0.00020821,2]
[321970112,1712661037925,-1102.31,0.00020821,2]
[321970113,1712661037933,-1703.48,0.00020821,2]
[321970114,1712661037942,-601.01072066,0.00020821,2]
[321970115,1712661037951,-2203.69,0.00020821,2]
[321970116,1712661037960,-500.0,0.00020821,2]
[321970117,1712661037970,-500.0,0.00020821,2]
[321970118,1712661037979,-529.31,0.00020821,2]
[321970119,1712661037989,-920.47,0.00020821,2]
[321970120,1712661038000,-500.0,0.00020821,2]
[321970121,1712661038011,-500.0,0.00020821,2]
[321970122,1712661038021,-500.0,0.00020821,2]
[321970123,1712661038032,-1104.01,0.00020821,2]
[321970124,1712661038043,-869.17,0.00020821,2]
[321970125,1712661038054,-639.76,0.00020821,2]
[321970126,1712661038064,-1220.79,0.00020821,2]
[321970127,1712661038075,-150.0,0.00020821,2]
[321970128,1712661038085,-500.0,0.00020821,2]
[321970129,1712661038096,-500.0,0.00020821,2]
[321970130,1712661038108,-500.0,0.00020821,2]
[321970131,1712661038120,-622.98,0.00020821,2]
[321970132,1712661038130,-1319.73,0.00020821,2]
[321970133,1712661038139,-933.05,0.00020821,2]
[321970134,1712661038149,-558.30509781,0.00020821,2]
[321970135,1712661038159,-502.56,0.00020821,2]
[321970136,1712661038169,-500.0,0.00020821,2]
[321970137,1712661038178,-500.0,0.00020821,2]
[321970138,1712661038188,-606.66317804,0.00020821,2]
[321970139,1712661038197,-500.0,0.00020821,2]
[321970140,1712661038206,-500.0,0.00020821,2]
[321970141,1712661038216,-1232.24,0.00020821,2]
[321970142,1712661038226,-500.0,0.00020821,2]
[321970143,1712661038236,-912.31,0.00020821,2]
[321970144,1712661038245,-500.0,0.00020821,2]
[321970145,1712661038254,-500.0,0.00020821,2]
[321970146,1712661038264,-500.0,0.00020821,2]
[321970147,1712661038273,-500.0,0.00020821,2]
[321970148,1712661038283,-500.0,0.00020821,2]
[321970149,1712661038292,-500.0,0.00020821,2]
[321970150,1712661038302,-1365.73,0.00020821,2]
[321970151,1712661038312,-500.0,0.00020821,2]
[321970152,1712661038321,-1035.72,0.00020821,2]
[321970153,1712661038331,-3741.87,0.00020821,2]
[321970154,1712661038340,-500.0,0.00020821,2]
[321970155,1712661038349,-500.0,0.00020821,2]
[321970156,1712661038359,-621.84,0.00020821,2]
[321970157,1712661038369,-500.0,0.00020821,2]
[321970158,1712661038378,-500.0,0.00020821,2]
[321970159,1712661038387,-527.66,0.00020821,2]
[321970160,1712661038396,-500.0,0.00020821,2]
[321970161,1712661038406,-500.0,0.00020821,2]
[321970162,1712661038415,-500.0,0.00020821,2]
[321970163,1712661038424,-500.0,0.00020821,2]
[321970164,1712661038433,-569.17,0.00020821,2]
[321970165,1712661038443,-536.57,0.00020821,2]
[321970166,1712661038452,-500.0,0.00020821,2]
[321970167,1712661038461,-500.0,0.00020821,2]
[321970168,1712661038470,-1188.45,0.00020821,2]
[321970169,1712661038480,-1338.91,0.00020821,2]
[321970170,1712661038489,-500.0,0.00020821,2]
[321970171,1712661038498,-241.58409996,0.00020821,2]
[321970172,1712661038508,-624.42,0.00020821,2]
[321970173,1712661038517,-500.0,0.00020821,2]
[321970174,1712661038526,-1240.97,0.00020821,2]
[321970175,1712661038535,-500.0,0.00020821,2]
[321970176,1712661038545,-500.0,0.00020821,2]
[321970177,1712661038554,-280.7225163,0.00020821,2]
[321970178,1712661038563,-1186.08,0.00020821,2]
[321970179,1712661038573,-500.0,0.00020821,2]
[321970180,1712661038582,-500.0,0.00020821,2]
[321970181,1712661038591,-500.0,0.00020821,2]
[321970182,1712661038600,-500.0,0.00020821,2]
[321970183,1712661038610,-1953.24,0.00020821,2]
[321970184,1712661038619,-500.0,0.00020821,2]
[321970185,1712661038628,-500.0,0.00020821,2]
[321970187,1712661038638,-728.69,0.00020821,2]
[321970189,1712661038647,-500.0,0.00020821,2]
[321970191,1712661038656,-987.06,0.00020821,2]
[321970193,1712661038665,-6968.33,0.00020821,2]
[321970195,1712661038674,-1007.33,0.00020821,2]
[321970197,1712661038683,-500.0,0.00020821,2]
[321970199,1712661038692,-1527.48,0.00020821,2]
[321970200,1712661038701,-500.0,0.00020821,2]
[321970201,1712661038711,-555.72,0.00020821,2]
[321970202,1712661038721,-500.0,0.00020821,2]
[321970203,1712661038730,-1239.33,0.00020821,2]
[321970204,1712661038740,-566.8,0.00020821,2]
[321970205,1712661038749,-500.0,0.00020821,2]
[321970206,1712661038758,-1067.51,0.00020821,2]
[321970207,1712661038768,-8997.66,0.00020821,2]
[321970208,1712661038778,-1141.22,0.00020821,2]
[321970209,1712661038787,-500.0,0.00020821,2]
[321970210,1712661038797,-500.0,0.00020821,2]
[321970211,1712661038806,-500.0,0.00020821,2]
[321970212,1712661038815,-557.32201151,0.00020821,2]
[321970213,1712661038824,-754.05,0.00020821,2]
[321970214,1712661038833,-500.0,0.00020821,2]
[321970215,1712661038844,-500.0,0.00020821,2]
[321970216,1712661038854,-757.66,0.00020821,2]
[321970217,1712661038865,-661.44,0.00020821,2]
[321970218,1712661038874,-774.98,0.00020821,2]
[321970219,1712661038884,-500.0,0.00020821,2]
[321970220,1712661038895,-500.0,0.00020821,2]
[321970221,1712661038907,-2838.51,0.00020821,2]
[321970222,1712661038917,-500.0,0.00020821,2]
[321970223,1712661038929,-500.0,0.00020821,2]
[321970224,1712661038939,-2032.98,0.00020821,2]
[321970225,1712661038948,-500.0,0.00020821,2]
[321970226,1712661038957,-1259.08,0.00020821,2]
[321970227,1712661038969,-500.0,0.00020821,2]
[321970228,1712661038979,-2113.1,0.00020821,2]
[321970229,1712661038989,-500.0,0.00020821,2]
[321970230,1712661038999,-1282.12,0.00020821,2]
[321970231,1712661039010,-925.48,0.00020821,2]
[321970232,1712661039020,-500.0,0.00020821,2]
[321970233,1712661039031,-500.0,0.00020821,2]
[321970234,1712661039041,-500.0,0.00020821,2]
[321970235,1712661039050,-500.0,0.00020821,2]
[321970236,1712661039060,-500.0,0.00020821,2]
[321970237,1712661039071,-925.01,0.00020821,2]
[321970238,1712661039080,-520.86989665,0.00020821,2]
[321970239,1712661039090,-500.0,0.00020821,2]